fUSD/lending_fUSD_20250512
["ID","MTS","AMOUNT","RATE_DAILY","PERIOD"]
[360828672,1747053038558,-363.99459216,0.00012464,2]
[360828673,1747053038567,-500.0,0.00012464,2]
[360828674,1747053038578,-816.82466231,0.00012465,2]
[360828675,1747053038587,-500.0,0.000125,2]
[360828676,1747053038596,-500.0,0.000125,2]
[360828677,1747053038606,-226.9186598,0.000125,2]
[360828678,1747053038615,-500.0,0.000125,2]
[360828679,1747053038624,-500.0,0.000125,2]
[360828680,1747053038633,-500.0,0.000125,2]
[360828681,1747053038643,-500.0,0.000125,2]
[360828682,1747053038655,-500.0,0.000125,2]
[360828683,1747053038664,-500.0,0.000125,2]
[360828684,1747053038673,-401.53,0.00012556,2]
[360828685,1747053038682,-1000.0,0.00012568,2]
[360828686,1747053038691,-250.0,0.00012577,2]
[360828687,1747053038700,-500.0,0.00012592,3]
[360828688,1747053038709,-9957.64842725,0.0001269,2]
[360828689,1747053038721,-883.883595,0.0001269,2]
[360828690,1747053038732,-5089.56138,0.0001269,2]
[360828691,1747053038742,-7504.26690602,0.0001269,2]
[360828692,1747053038751,-928.15610862,0.000127,2]
[360828693,1747053038762,-736.18728025,0.000127,2]
[360828694,1747053038771,-164.42150949,0.00012763,2]
[360828695,1747053038780,-330.02,0.00012772,2]
[360828696,1747053038790,-8975.16,0.00012818,2]
[360828697,1747053038799,-875.25,0.00012863,2]
[360828698,1747053038808,-165.14,0.0001301,2]
[360828699,1747053038818,-343.98,0.00013166,2]
[360828700,1747053038827,-343.98,0.0001317,2]
[360828701,1747053038836,-343.98,0.00013173,2]
[360828702,1747053038846,-343.98,0.00013176,2]
[360828703,1747053038855,-343.98,0.0001318,2]
[360828704,1747053038864,-23900.0,0.00013183,2]
[360828705,1747053038873,-343.98,0.00013183,2]
[360828706,1747053038882,-343.98,0.00013187,2]
[360828707,1747053038891,-343.98,0.0001319,2]
[360828708,1747053038904,-343.98,0.00013194,2]
[360828709,1747053038916,-343.98,0.00013197,2]
[360828710,1747053038926,-343.98,0.00013201,2]
[360828711,1747053038935,-343.98,0.00013204,2]
[360828712,1747053038944,-343.98,0.00013207,2]
[360828713,1747053038955,-343.98,0.00013211,2]
[360828714,1747053038964,-343.98,0.00013214,2]
[360828715,1747053038973,-343.98,0.00013218,2]
[360828716,1747053038982,-98.00934026,0.00013221,2]
[360828717,1747053038993,-245.97065974,0.00013221,2]
[360828718,1747053039003,-328.47245821,0.00013225,2]
[360828719,1747053039014,-15.50754179,0.00013225,2]
[360828720,1747053039023,-343.98,0.00013228,2]
[360828721,1747053039032,-343.98,0.00013232,2]
[360828722,1747053039041,-1075.0,0.00013556,2]
[360828723,1747053039050,-255.0,0.0001356,2]
[360828724,1747053039060,-155.0,0.00013597,2]
[360828725,1747053039069,-151.0,0.00013597,2]
[360828726,1747053039078,-668.65185757,0.00013597,2]
[360828727,1747053039087,-151.0,0.00013597,2]
[360828728,1747053039096,-207.4,0.00013597,2]
[360828729,1747053039105,-420.0,0.00013675,2]
[360828730,1747053039115,-420.0,0.00013675,2]
[360828731,1747053039124,-151.0,0.00013699,2]
[360828732,1747053039133,-489.52,0.00013699,2]
[360828733,1747053039142,-200.0,0.00013699,2]
[360828734,1747053039153,-222.95,0.00013699,2]
[360828735,1747053039162,-500.0,0.00013699,2]
[360828736,1747053039171,-1680.0,0.00013709,2]
[360828737,1747053039180,-784.88382843,0.00013743,2]
[360828738,1747053039190,-2152.47377452,0.00013931,2]
[360828739,1747053039198,-628.0,0.00013943,2]
[360828740,1747053039208,-798.0,0.00013943,2]
[360828741,1747053039219,-576.0,0.00013943,2]
[360828742,1747053039229,-1249.0,0.00013943,2]
[360828743,1747053039238,-918.0,0.00013943,2]
[360828744,1747053039247,-552.0,0.00013943,2]
[360828745,1747053039256,-1456.0,0.00013943,2]
[360828746,1747053039265,-1146.0,0.00013943,2]
[360828747,1747053039274,-5939.0,0.00013943,2]
[360828748,1747053039283,-6868.845,0.00013943,2]
[360828749,1747053039292,-4029.0,0.00013943,2]
[360828751,1747053039301,-930.0,0.00013943,2]
[360828752,1747053039309,-154.0,0.00013943,2]
[360828753,1747053039319,-2152.47377446,0.0001397,2]
[360828754,1747053039328,-595.56873016,0.00013988,2]
[360828755,1747053039337,-400.0,0.00013999,2]
[360828756,1747053039346,-400.0,0.00013999,2]
[360828757,1747053039355,-400.0,0.00013999,2]
[360828758,1747053039364,-400.0,0.00013999,2]
[360828759,1747053039373,-432.47,0.00013999,2]
[360828760,1747053039382,-410.05,0.00013999,2]
[360828761,1747053039393,-400.0,0.00013999,2]
[360828762,1747053039403,-400.0,0.00013999,2]
[360828763,1747053039414,-400.0,0.00013999,2]
[360828764,1747053039426,-502.17,0.00013999,2]
[360828765,1747053039435,-934.79,0.00013999,2]
[360828766,1747053039444,-330.96,0.00013999,2]
[360828767,1747053039453,-400.0,0.00013999,2]
[360828768,1747053039463,-400.0,0.00013999,2]
[360828769,1747053039472,-400.0,0.00013999,2]
[360828770,1747053039481,-400.0,0.00013999,2]
[360828771,1747053039491,-401.1745333,0.00013999,2]
[360828772,1747053039500,-481.88,0.00013999,2]
[360828773,1747053039510,-400.0,0.00013999,2]
[360828774,1747053039520,-400.0,0.00013999,2]
[360828775,1747053039530,-400.0,0.00013999,2]
[360828776,1747053039540,-400.0,0.00013999,2]
[360828777,1747053039549,-400.0,0.00013999,2]
[360828778,1747053039558,-400.0,0.00013999,2]
[360828779,1747053039567,-7726.97792091,0.00014,2]
[360828780,1747053039576,-7726.97792088,0.00014,2]
[360828781,1747053039585,-588.18060222,0.00014,2]
[360828783,1747053039660,-5530.527875,0.00014,2]
[360828784,1747053039671,-797.81435545,0.00014,2]
[360828785,1747053040140,-810.45508821,0.00014,2]
[360828786,1747053040151,-233.41807542,0.00014,2]
[360828787,1747053040163,-5638.47722129,0.00014,2]
[360828788,1747053040174,-446.15504,0.00014,2]
[360828789,1747053040185,-250.85280794,0.00014,2]
[360828790,1747053040200,-1158.07477623,0.00014,2]
[360828791,1747053040210,-7726.97792088,0.00014,2]
[360828792,1747053040220,-211.59103403,0.00014,2]
[360828793,1747053040231,-7515.38688685,0.00014,2]
[360828794,1747053040241,-1431.83190788,0.00014,2]
[360828795,1747053040252,-6295.146013,0.00014,2]
[360828796,1747053040262,-2648.63785162,0.00014,2]
[360828797,1747053040274,-5078.34006926,0.00014,2]
[360828798,1747053040283,-3999.20859226,0.00014,2]
[360828799,1747053040294,-3727.76932862,0.00014,2]
[360828800,1747053040303,-5216.07090627,0.00014,2]
[360828801,1747053040317,-2510.90701461,0.00014,2]
[360828802,1747053040327,-7726.97792088,0.00014,2]
[360828803,1747053040336,-7726.97792088,0.00014,2]
[360828804,1747053040345,-7726.97792088,0.00014,2]
[360828805,1747053040355,-7726.97792088,0.00014,2]
[360828806,1747053040365,-7726.97792088,0.00014,2]
[360828807,1747053040374,-7726.97792088,0.00014,2]
[360828808,1747053040383,-7726.97792088,0.00014003,2]
[360828809,1747053040392,-388.7506,0.00014007,2]
[360828810,1747053040402,-2152.47377446,0.00014009,2]
[360828811,1747053040412,-747.78072259,0.00014043,2]
[360828812,1747053040421,-2152.47377446,0.00014049,2]
[360828813,1747053040430,-457.29,0.00014055,2]
[360828814,1747053040439,-803.73,0.00014055,2]
[360828815,1747053040448,-803.73,0.00014055,2]
[360828816,1747053040458,-457.29,0.00014055,2]
[360828817,1747053040467,-457.29,0.00014055,2]
[360828818,1747053040476,-747.78072251,0.0001407,2]
[360828819,1747053040485,-7726.97792088,0.00014072,2]
[360828820,1747053040494,-2152.47377446,0.00014088,2]
[360828821,1747053040503,-747.78072251,0.00014097,2]
[360828822,1747053040513,-2234.22222,0.000141,2]
[360828823,1747053040524,-747.78072251,0.00014123,2]
[360828824,1747053040534,-459.14662384,0.00014127,2]
[360828825,1747053040545,-1693.32715062,0.00014127,2]
[360828826,1747053040554,-173.90104145,0.00014129,2]
[360828827,1747053040563,-400.0,0.0001413,2]
[360828828,1747053040573,-400.0,0.0001413,2]
[360828829,1747053040582,-400.0,0.0001413,2]
[360828830,1747053040594,-400.0,0.0001413,2]
[360828831,1747053040604,-400.0,0.0001413,2]
[360828833,1747053040614,-400.0,0.0001413,2]
[360828834,1747053040623,-400.0,0.0001413,2]
[360828835,1747053040632,-400.0,0.0001413,2]
[360828836,1747053040642,-400.0,0.0001413,2]
[360828838,1747053040652,-400.0,0.0001413,2]
[360828839,1747053040661,-400.0,0.0001413,2]
[360828841,1747053040670,-282.7789479,0.0001413,2]
[360828842,1747053040680,-400.0,0.0001413,2]
[360828843,1747053040689,-400.0,0.0001413,2]
[360828844,1747053040698,-400.0,0.0001413,2]
[360828845,1747053040711,-19243.976,0.00014131,2]
[360828846,1747053040720,-435.1462,0.00014131,2]
[360828847,1747053040731,-415.6829,0.00014131,2]
[360828848,1747053040747,-1800.892,0.00014131,2]
[360828849,1747053040757,-7488.2367,0.00014131,2]
[360828850,1747053040766,-2644.2318,0.00014131,2]
[360828851,1747053040775,-1000.0,0.00014139,2]
[360828852,1747053040784,-246.0364,0.00014141,2]
[360828853,1747053040793,-400.0,0.00014141,2]
[360828854,1747053040803,-400.0,0.00014141,2]
[360828855,1747053040813,-400.0,0.00014141,2]
[360828856,1747053040823,-400.0,0.00014141,2]
[360828857,1747053040832,-400.0,0.00014141,2]
[360828858,1747053040841,-400.0,0.00014141,2]
[360828859,1747053040850,-400.0,0.00014141,2]
[360828860,1747053040859,-400.0,0.00014141,2]
[360828861,1747053040869,-400.0,0.00014141,2]
[360828862,1747053040878,-3667.23,0.00014141,2]
[360828863,1747053040888,-400.32501386,0.00014141,2]
[360828864,1747053040897,-1995.36,0.00014141,2]
[360828865,1747053040907,-400.0,0.00014141,2]
[360828866,1747053040916,-400.0,0.00014141,2]
[360828867,1747053040926,-400.0,0.00014141,2]
[360828868,1747053040935,-400.0,0.00014141,2]
[360828869,1747053040945,-400.0,0.00014141,2]
[360828870,1747053040954,-400.0,0.00014141,2]
[360828871,1747053040963,-400.0,0.00014141,2]
[360828872,1747053040972,-2527.57,0.00014141,2]
[360828873,1747053040981,-400.0,0.00014141,2]
[360828874,1747053040990,-400.0,0.00014141,2]
[360828875,1747053040999,-400.0,0.00014141,2]
[360828876,1747053041008,-400.0,0.00014141,2]
[360828877,1747053041017,-400.0,0.00014141,2]
[360828878,1747053041026,-1580.44,0.00014141,2]
[360828879,1747053041035,-400.0,0.00014141,2]
[360828880,1747053041044,-735.96,0.00014141,2]
[360828881,1747053041053,-400.0,0.00014141,2]
[360828882,1747053041062,-90694.99629452,0.00014141,2]
[360828883,1747053041074,-1000.0,0.00014141,2]
[360828884,1747053041085,-1000.0,0.00014141,2]
[360828885,1747053041096,-58181.96370548,0.00014141,2]
[360828886,1747053041105,-400.0,0.00014141,2]
[360828887,1747053041114,-1000.0,0.00014141,2]
[360828888,1747053041123,-7726.97792088,0.00014141,2]
[360828889,1747053041132,-400.0,0.00014143,2]
[360828890,1747053041141,-400.0,0.00014143,2]
[360828891,1747053041151,-536.57481133,0.00014143,2]
[360828892,1747053041160,-403.52553418,0.00014143,2]
[360828893,1747053041170,-400.0,0.00014143,2]
[360828894,1747053041180,-400.0,0.00014143,2]
[360828895,1747053041189,-400.0,0.00014143,2]
[360828896,1747053041198,-400.0,0.00014143,2]
[360828897,1747053041208,-211.6115432,0.00014145,2]
[360828898,1747053041217,-693.3919763,0.00014145,2]
[360828899,1747053041227,-747.78072251,0.0001415,2]
[360828900,1747053041236,-2152.47377446,0.00014166,2]
[360828901,1747053041246,-400.0,0.00014175,2]
[360828902,1747053041255,-400.0,0.00014175,2]
[360828903,1747053041264,-400.0,0.00014175,2]
[360828904,1747053041274,-400.0,0.00014175,2]
[360828905,1747053041283,-272.83012225,0.00014175,2]
[360828906,1747053041292,-400.0,0.00014175,2]
[360828907,1747053041300,-400.0,0.00014175,2]
[360828908,1747053041310,-400.0,0.00014175,2]
[360828909,1747053041319,-400.0,0.00014175,2]
[360828910,1747053041329,-400.0,0.00014175,2]
[360828911,1747053041338,-450.45217073,0.00014175,2]
[360828912,1747053041347,-544.09604156,0.00014175,2]
[360828913,1747053041356,-400.0,0.00014175,2]
[360828914,1747053041365,-450.0,0.00014175,2]
[360828915,1747053041374,-400.0,0.00014175,2]
[360828916,1747053041383,-400.0,0.00014175,2]
[360828917,1747053041392,-400.0,0.00014175,2]
[360828918,1747053041403,-400.0,0.00014175,2]
[360828919,1747053041412,-400.0,0.00014175,2]
[360828920,1747053041421,-400.0,0.00014175,2]
[360828921,1747053041430,-400.0,0.00014175,2]
[360828922,1747053041439,-400.0,0.00014175,2]
[360828923,1747053041448,-400.0,0.00014175,2]
[360828924,1747053041457,-400.0,0.00014175,2]
[360828925,1747053041466,-400.0,0.00014175,2]
[360828926,1747053041476,-400.0,0.00014175,2]
[360828927,1747053041484,-400.0,0.00014175,2]
[360828928,1747053041635,-400.0,0.00014175,2]
[360828929,1747053041673,-400.0,0.00014175,2]
[360828930,1747053041682,-400.0,0.00014175,2]
[360828931,1747053041692,-400.0,0.00014175,2]
[360828932,1747053041701,-400.0,0.00014175,2]
[360828933,1747053041711,-400.0,0.00014175,2]
[360828934,1747053041720,-400.0,0.00014175,2]
[360828935,1747053041729,-400.0,0.00014175,2]
[360828936,1747053041739,-400.0,0.00014175,2]
[360828937,1747053041748,-214.38152681,0.00014175,2]
[360828938,1747053041757,-400.0,0.00014175,2]
[360828939,1747053041767,-400.0,0.00014175,2]
[360828940,1747053041779,-400.0,0.00014175,2]
[360828941,1747053041788,-506.87,0.00014175,2]
[360828942,1747053041797,-509.36609094,0.00014175,2]
[360828943,1747053041808,-416.56,0.00014175,2]
[360828944,1747053041817,-400.0,0.00014175,2]
[360828945,1747053041827,-400.0,0.00014175,2]
[360828946,1747053041838,-400.0,0.00014175,2]
[360828947,1747053041847,-500.0,0.00014175,2]
[360828948,1747053041856,-400.0,0.00014175,2]
[360828949,1747053041866,-4136.02,0.00014175,2]
[360828950,1747053041875,-400.0,0.00014175,2]
[360828951,1747053041885,-400.0,0.00014175,2]
[360828952,1747053041894,-1310.39,0.00014175,2]
[360828953,1747053041911,-458.17921892,0.00014175,2]
[360828954,1747053041920,-400.0,0.00014175,2]
[360828955,1747053041930,-480.45,0.00014175,2]
[360828956,1747053041939,-7328.96,0.00014175,2]
[360828957,1747053041949,-1687.87,0.00014175,2]
[360828958,1747053041958,-17770.44,0.00014175,2]
[360828959,1747053041968,-1035.03,0.00014175,2]
[360828960,1747053041978,-400.0,0.00014175,2]
[360828961,1747053041987,-488.33,0.00014175,2]
[360828962,1747053041997,-400.0,0.00014175,2]
[360828963,1747053042006,-400.0,0.00014175,2]
[360828964,1747053042016,-400.0,0.00014175,2]
[360828965,1747053042027,-93749.76362514,0.00014175,2]
[360828970,1747053043008,-400.0,0.00013999,2]
[360828971,1747053043020,-251.46637486,0.00014175,2]
[360828972,1747053043031,-400.0,0.00014175,2]
[360828973,1747053043041,-4527.31,0.00014175,2]
[360828974,1747053043051,-400.0,0.00014175,2]
[360828975,1747053043060,-400.0,0.00014175,2]
[360828976,1747053043069,-400.0,0.00014175,2]
[360828977,1747053043079,-400.0,0.00014175,2]
[360828978,1747053043088,-400.0,0.00014175,2]
[360828979,1747053043097,-400.0,0.00014175,2]
[360828980,1747053043106,-34120.96,0.00014175,2]
[360828981,1747053043116,-2376.17,0.00014175,2]
[360828982,1747053043125,-400.0,0.00014175,2]
[360828983,1747053043134,-400.0,0.00014175,2]
[360828984,1747053043144,-400.0,0.00014175,2]
[360828985,1747053043156,-400.0,0.00014175,2]
[360828986,1747053043165,-400.0,0.00014175,2]
[360828987,1747053043174,-400.0,0.00014175,2]
[360828988,1747053043184,-400.0,0.00014175,2]
[360828989,1747053043193,-400.0,0.00014175,2]
[360828990,1747053043202,-400.0,0.00014175,2]
[360828991,1747053043211,-400.0,0.00014175,2]
[360828992,1747053043220,-400.0,0.00014175,2]
[360828993,1747053043230,-747.78072251,0.00014177,2]
[360828994,1747053043239,-151.0,0.00014184,2]
[360828995,1747053043248,-910.39,0.00014192,2]
[360828996,1747053043257,-352.8,0.00014192,2]
[360828997,1747053043267,-352.8,0.00014192,2]
[360828998,1747053043276,-352.8,0.00014192,2]
[360828999,1747053043285,-352.8,0.00014192,2]
[360829000,1747053043294,-352.8,0.00014192,2]
[360829001,1747053043303,-705.04,0.00014192,2]
[360829002,1747053043312,-165.87444269,0.00014195,2]
[360829003,1747053043321,-747.78072251,0.00014204,2]
[360829004,1747053043331,-2152.47377446,0.00014206,2]
[360829005,1747053043340,-7726.97792088,0.0001421,2]
[360829006,1747053043349,-222.63603185,0.00014219,2]
[360829007,1747053043358,-400.0,0.00014228,2]
[360829009,1747053043367,-400.0,0.00014228,2]
[360829011,1747053043376,-400.0,0.00014228,2]
[360829013,1747053043386,-400.0,0.00014228,2]
[360829015,1747053043395,-400.0,0.00014228,2]
[360829017,1747053043406,-502.17,0.00014228,2]
[360829019,1747053043415,-934.79,0.00014228,2]
[360829021,1747053043425,-400.0,0.00014228,2]
[360829023,1747053043435,-400.0,0.00014228,2]
[360829025,1747053043445,-400.0,0.00014228,2]
[360829027,1747053043454,-400.0,0.00014228,2]
[360829029,1747053043463,-400.0,0.00014228,2]
[360829031,1747053043472,-400.0,0.00014228,2]
[360829033,1747053043481,-400.0,0.00014228,2]
[360829035,1747053043491,-400.0,0.00014228,2]
[360829037,1747053043499,-251053.7596494,0.00014229,2]
[360829039,1747053043508,-400.0,0.00014229,2]
[360829040,1747053043518,-400.98229514,0.00014229,2]
[360829041,1747053043529,-400.0,0.00014229,2]
[360829042,1747053043543,-400.0,0.00014229,2]
[360829043,1747053043554,-400.55499244,0.00014229,2]
[360829044,1747053043563,-400.0,0.00014229,2]
[360829045,1747053043573,-473.88560983,0.00014229,2]
[360829046,1747053043582,-400.0,0.00014229,2]
[360829047,1747053043591,-400.0,0.00014229,2]
[360829048,1747053043600,-400.0,0.00014229,2]
[360829050,1747053043610,-403.01845904,0.00014229,2]
[360829051,1747053043619,-400.41896946,0.00014229,2]
[360829053,1747053043628,-435.1893572,0.00014229,2]
[360829054,1747053043637,-400.0,0.00014229,2]
[360829055,1747053043646,-400.0,0.00014229,2]
[360829056,1747053043657,-400.0,0.00014229,2]
[360829057,1747053043667,-407.70024265,0.00014229,2]
[360829058,1747053043676,-400.0,0.00014229,2]
[360829059,1747053043686,-400.0,0.00014229,2]
[360829060,1747053043696,-400.0,0.00014229,2]
[360829061,1747053043705,-400.0,0.00014229,2]
[360829062,1747053043715,-400.0,0.00014229,2]
[360829063,1747053043724,-400.0,0.00014229,2]
[360829064,1747053043733,-400.0,0.00014229,2]
[360829065,1747053043743,-400.0,0.00014229,2]
[360829066,1747053043752,-400.0,0.00014229,2]
[360829067,1747053043761,-400.0,0.00014229,2]
[360829068,1747053043770,-400.0,0.00014229,2]
[360829069,1747053043780,-374.78693537,0.00014229,2]
[360829070,1747053043789,-400.0,0.00014229,2]
[360829071,1747053043798,-400.0,0.00014229,2]
[360829072,1747053043807,-267.92,0.00014229,2]
[360829073,1747053043817,-400.0,0.00014229,2]
[360829074,1747053043826,-400.0,0.00014229,2]
[360829075,1747053043835,-400.0,0.00014229,2]
[360829076,1747053043845,-400.0,0.00014229,2]
[360829077,1747053043854,-290.21,0.00014229,2]
[360829078,1747053043863,-308.44724013,0.00014229,2]
[360829079,1747053043873,-217.37,0.00014229,2]
[360829080,1747053043882,-416.56,0.00014229,2]
[360829081,1747053043891,-206.95,0.00014229,2]
[360829082,1747053043902,-244.84,0.00014229,2]
[360829083,1747053043913,-400.0,0.00014229,2]
[360829084,1747053043922,-400.0,0.00014229,2]
[360829085,1747053043931,-400.0,0.00014229,2]
[360829086,1747053043941,-400.0,0.00014229,2]
[360829087,1747053043950,-400.0,0.00014229,2]
[360829088,1747053043959,-400.0,0.00014229,2]
[360829089,1747053043968,-400.0,0.00014229,2]
[360829090,1747053043977,-181.93039039,0.00014229,2]
[360829091,1747053043986,-400.0,0.00014229,2]
[360829092,1747053043995,-473.00402419,0.00014229,2]
[360829093,1747053044004,-400.0,0.00014229,2]
[360829094,1747053044013,-400.0,0.00014229,2]
[360829095,1747053044022,-4136.02,0.00014229,2]
[360829096,1747053044031,-427.9770544,0.00014229,2]
[360829097,1747053044041,-400.0,0.00014229,2]
[360829098,1747053044050,-3667.23,0.00014229,2]
[360829099,1747053044059,-1310.39,0.00014229,2]
[360829100,1747053044068,-1995.36,0.00014229,2]
[360829101,1747053044078,-400.0,0.00014229,2]
[360829102,1747053044087,-400.0,0.00014229,2]
[360829103,1747053044097,-480.45,0.00014229,2]
[360829104,1747053044106,-400.0,0.00014229,2]
[360829105,1747053044116,-7328.96,0.00014229,2]
[360829106,1747053044125,-400.0,0.00014229,2]
[360829107,1747053044134,-1687.87,0.00014229,2]
[360829108,1747053044144,-400.0,0.00014229,2]
[360829109,1747053044155,-400.0,0.00014229,2]
[360829110,1747053044164,-400.0,0.00014229,2]
[360829111,1747053044173,-400.0,0.00014229,2]
[360829112,1747053044182,-400.0,0.00014229,2]
[360829113,1747053044191,-400.0,0.00014229,2]
[360829114,1747053044200,-400.0,0.00014229,2]
[360829115,1747053044210,-400.0,0.00014229,2]
[360829116,1747053044219,-400.0,0.00014229,2]
[360829117,1747053044228,-17770.44,0.00014229,2]
[360829118,1747053044238,-400.0,0.00014229,2]
[360829119,1747053044247,-400.0,0.00014229,2]
[360829120,1747053044256,-1035.03,0.00014229,2]
[360829121,1747053044265,-400.0,0.00014229,2]
[360829122,1747053044274,-488.33,0.00014229,2]
[360829123,1747053044284,-400.0,0.00014229,2]
[360829124,1747053044293,-400.0,0.00014229,2]
[360829125,1747053044302,-400.0,0.00014229,2]
[360829126,1747053044311,-88593.89104259,0.00014229,2]
[360829127,1747053044324,-844.85796488,0.00014229,2]
[360829128,1747053044336,-500.0,0.00014229,2]
[360829129,1747053044402,-400.0,0.00014174,2]
[360829130,1747053044412,-732.0,0.00014229,2]
[360829131,1747053044424,-3330.48099253,0.00014229,2]
[360829132,1747053044434,-400.0,0.00014229,2]
[360829133,1747053044444,-400.0,0.00014229,2]
[360829134,1747053044454,-1063.01900747,0.00014229,2]
[360829140,1747053046039,-400.0,0.00014175,2]
[360829141,1747053046049,-100.0,0.00014193,2]
[360829142,1747053046097,-253.5,0.00014193,2]
[360829143,1747053046210,-3762.11523786,0.00014193,2]
[360829144,1747053046220,-400.0,0.00014228,2]
[360829145,1747053046229,-3276.70066214,0.00014229,2]
[360829146,1747053046243,-187.59033039,0.00014229,2]
[360829147,1747053046252,-400.0,0.00014229,2]
[360829148,1747053046262,-400.0,0.00014229,2]
[360829149,1747053046272,-289.16,0.00014229,2]
[360829150,1747053046282,-400.0,0.00014229,2]
[360829151,1747053046292,-400.0,0.00014229,2]
[360829152,1747053046301,-400.0,0.00014229,2]
[360829153,1747053046310,-2527.57,0.00014229,2]
[360829154,1747053046319,-400.0,0.00014229,2]
[360829155,1747053046329,-400.0,0.00014229,2]
[360829157,1747053046339,-6817.27768183,0.00014229,2]
[360829158,1747053046350,-397.591867,0.00014229,2]
[360829165,1747053187712,432.929646,7.945e-05,2]
[360829168,1747053386062,1333.0,0.00026137,120]
[360829186,1747053907257,150.0,0.00013699,7]
[360829199,1747053928256,803.92,0.00010847,2]
[360829219,1747054024926,36115.09853764,0.000278,120]
[360829220,1747054039618,1312.21081416,0.0001,2]
[360829221,1747054039641,2701.65705972,0.0001,2]
[360829222,1747054039662,2029.51498529,0.0001,2]
[360829224,1747054170675,753.76579582,0.00026137,120]
[360829230,1747054232149,-164.63034405,0.0001235,2]
[360829231,1747054232159,-1200.0,0.00012446,2]
[360829232,1747054232168,-300.0,0.00012446,2]
[360829233,1747054232178,-160.87105986,0.00012446,2]
[360829234,1747054232189,-139.12894014,0.00012446,2]
[360829235,1747054232199,-167.33982839,0.00012447,2]
[360829236,1747054232229,-332.66017161,0.00012447,2]
[360829237,1747054232238,-500.0,0.00012447,2]
[360829238,1747054232248,-500.0,0.00012447,2]
[360829239,1747054232257,-500.0,0.00012447,2]
[360829240,1747054232267,-500.0,0.00012447,2]
[360829241,1747054232276,-500.0,0.00012447,2]
[360829242,1747054232285,-257.91491109,0.00012447,2]
[360829243,1747054232295,-500.0,0.00012447,2]
[360829244,1747054232304,-500.0,0.00012447,2]
[360829245,1747054232313,-21.71178835,0.00012447,2]
[360829246,1747054232337,-410.1952028,0.00012447,2]
[360829247,1747054232359,-68.09300885,0.00012447,2]
[360829248,1747054232368,-500.0,0.00012447,2]
[360829249,1747054232378,-500.0,0.00012447,2]
[360829250,1747054232387,-156.20860496,0.00012448,2]
[360829251,1747054232397,-150.0,0.00012448,2]
[360829252,1747054232406,-175.87150794,0.00012448,2]
[360829253,1747054232415,-194.79331002,0.00012448,2]
[360829254,1747054232425,-168.72148777,0.00012448,2]
[360829255,1747054232434,-46.91208045,0.00012448,2]
[360829296,1747054237932,-124.2483478,0.00012448,2]
[360829298,1747054237944,-1000.0,0.00012759,2]
[360829301,1747054237954,-334.17,0.00012761,2]
[360829303,1747054237964,-2827.64,0.00012807,2]
[360829304,1747054237974,-552.01,0.00012979,2]
[360829307,1747054237985,-1727.8,0.00013078,2]
[360829309,1747054237995,-204.28,0.00013104,2]
[360829311,1747054238005,-803.92,0.00013111,2]
[360829313,1747054238014,-218.49244251,0.00013176,2]
[360829315,1747054238026,-1551.95099112,0.00013176,2]
[360829317,1747054238037,-528.24656637,0.00013176,2]